{"text_format":"1","workbook":"xlsx","n_sheets":3,"sheets":["Term time booking form","Terms & Conditions","Admin"],"not_rendered":{"charts":0,"images":1,"macros":1,"external_links":0,"defined_names":2,"comments":0,"pivot_tables":0},"unopened":[],"bounds":{"document_bytes":16777216,"sheet_cells":100000,"rows_first":2000,"rows_last":500,"rows_between":2000,"halvings":0,"cell_chars":16384,"cell_head_chars":4096},"cells_cut":0,"cells_raw":0,"read":"whole","date_system":"1900"}

{"sheet":"Term time booking form","index":0,"n_rows":55,"n_cols":14,"rows_kept":55,"cut":false,"hidden":false,"merged":[[2,2,2,8],[10,2,10,5],[10,7,10,8],[8,1,8,8],[47,4,50,5],[50,2,50,3],[47,1,48,3],[5,7,5,8],[5,1,5,3],[6,4,6,6],[7,4,7,6],[5,4,5,6],[7,1,7,3],[6,1,6,3],[16,4,18,4],[36,1,38,1],[54,1,54,2],[12,1,12,8],[47,6,47,7],[48,6,48,7],[50,6,50,7],[45,2,45,6],[49,6,49,7],[52,5,52,8],[40,1,42,1],[16,3,18,3],[32,1,34,1],[28,1,30,1],[24,1,26,1],[20,1,22,1],[16,1,18,1]]}
[]
[]
[null,null,"WOSC Term time Advance booking form"]
[]
[]
[null,"Booking form period",null,null,{"$f":"Admin!G4","v":"Sept - Oct"},null,null,{"$f":"Admin!G3","v":2018},null,"2018-07-02T21:53:48"]
[null,"Book and pay in advance to to utilise the early bird rate.",null,null,"Early Bird Form submission Deadline:",null,null,{"$f":"Admin!G6","v":"2018-07-20"},23.59,{"$f":"IF(H7+1>= J6,FALSE,TRUE)","v":false}]
[null,"All other bookings for this half term will be charged full rate.",null,null,"Early Bird Payment Deadline:",null,null,"2018-08-03","23:59:00",{"$f":"MATCH(\"Total\",J9:J133,0) +8","v":46}]
[null,"All places are allocated on a first come, first serve basis, with priority given as per admissions and booking policy, to ensure compliance to Ofsted and insurance requirements.",null,null,null,null,null,null,null,{"$f":"MATCH(\"Header\",J10:J134,0) +9","v":15}]
[null,null,null,null,null,null,null,null,null,{"$f":"(I52=I46)","v":true}]
[null,"Childs Name*",null,null,null,null,"Year*"]
[]
[null,"Please complete one form per child. Place an x in the relevant session boxes that you require.  If you have a regular pattern, use the copy button to copy the pattern from the first week into subsequent weeks. Adjustment may be needed if bank holidays or WW training days fall in the first week."]
[]
[null,"Week","Time","Mon","Tues","Wed","Thurs","Fri","Weekly total","Header"]
[]
[null,"03/09/2018 - 07/09/2018","07:30 - 08:45","Hol Club","Training day",null,null,null,{"$f":"SUM(K17:N17)","v":0},null,{"$f":"IF(OR(E17=\"\",E17=Admin!$D$16, E17=Admin!$D$12),0,IF('Term time booking form'!$J$7,'Terms & Conditions'!$G$4,'Terms & Conditions'!$F$4))","v":0},{"$f":"IF(OR(F17=\"\",F17=Admin!$D$16, F17=Admin!$D$12),0,IF('Term time booking form'!$J$7,'Terms & Conditions'!$G$4,'Terms & Conditions'!$F$4))","v":0},{"$f":"IF(OR(G17=\"\",G17=Admin!$D$16, G17=Admin!$D$12),0,IF('Term time booking form'!$J$7,'Terms & Conditions'!$G$4,'Terms & Conditions'!$F$4))","v":0},{"$f":"IF(OR(H17=\"\",H17=Admin!$D$16, H17=Admin!$D$12),0,IF('Term time booking form'!$J$7,'Terms & Conditions'!$G$4,'Terms & Conditions'!$F$4))","v":0}]
[null,null,"15:20 - 17:00 ",null,null,null,null,null,{"$f":"SUM(J18:N18)","v":0},null,{"$f":"IF(OR(E18=\"\",E18=Admin!$D$16, E18=Admin!$D$12),0,IF('Term time booking form'!$J$7,'Terms & Conditions'!$G$5,'Terms & Conditions'!$F$5))","v":0},{"$f":"IF(OR(F18=\"\",F18=Admin!$D$16, F18=Admin!$D$12),0,IF('Term time booking form'!$J$7,'Terms & Conditions'!$G$5,'Terms & Conditions'!$F$5))","v":0},{"$f":"IF(OR(G18=\"\",G18=Admin!$D$16, G18=Admin!$D$12),0,IF('Term time booking form'!$J$7,'Terms & Conditions'!$G$5,'Terms & Conditions'!$F$5))","v":0},{"$f":"IF(OR(H18=\"\",H18=Admin!$D$16, H18=Admin!$D$12),0,IF('Term time booking form'!$J$7,'Terms & Conditions'!$G$5,'Terms & Conditions'!$F$5))","v":0}]
[null,null,"15:20 - 18:00",null,null,null,null,null,{"$f":"SUM(J19:N19)","v":0},null,{"$f":"IF(OR(E19=\"\",E19=Admin!$D$16, E19=Admin!$D$12),0,IF('Term time booking form'!$J$7,'Terms & Conditions'!$G$6,'Terms & Conditions'!$F$6))","v":0},{"$f":"IF(OR(F19=\"\",F19=Admin!$D$16, F19=Admin!$D$12),0,IF('Term time booking form'!$J$7,'Terms & Conditions'!$G$6,'Terms & Conditions'!$F$6))","v":0},{"$f":"IF(OR(G19=\"\",G19=Admin!$D$16, G19=Admin!$D$12),0,IF('Term time booking form'!$J$7,'Terms & Conditions'!$G$6,'Terms & Conditions'!$F$6))","v":0},{"$f":"IF(OR(H19=\"\",H19=Admin!$D$16, H19=Admin!$D$12),0,IF('Term time booking form'!$J$7,'Terms & Conditions'!$G$6,'Terms & Conditions'!$F$6))","v":0}]
[]
[null,"10/09/2018 - 14/09/2018","07:30 - 08:45",null,null,null,null,null,{"$f":"SUM(J21:N21)","v":0},{"$f":"IF(OR(D21=\"\",D21=Admin!$D$16, D21=Admin!$D$12),0,IF('Term time booking form'!$J$7,'Terms & Conditions'!$G$4,'Terms & Conditions'!$F$4))","v":0},{"$f":"IF(OR(E21=\"\",E21=Admin!$D$16, E21=Admin!$D$12),0,IF('Term time booking form'!$J$7,'Terms & Conditions'!$G$4,'Terms & Conditions'!$F$4))","v":0},{"$f":"IF(OR(F21=\"\",F21=Admin!$D$16, F21=Admin!$D$12),0,IF('Term time booking form'!$J$7,'Terms & Conditions'!$G$4,'Terms & Conditions'!$F$4))","v":0},{"$f":"IF(OR(G21=\"\",G21=Admin!$D$16, G21=Admin!$D$12),0,IF('Term time booking form'!$J$7,'Terms & Conditions'!$G$4,'Terms & Conditions'!$F$4))","v":0},{"$f":"IF(OR(H21=\"\",H21=Admin!$D$16, H21=Admin!$D$12),0,IF('Term time booking form'!$J$7,'Terms & Conditions'!$G$4,'Terms & Conditions'!$F$4))","v":0}]
[null,null,"15:20 - 17:00 ",null,null,null,null,null,{"$f":"SUM(J22:N22)","v":0},{"$f":"IF(OR(D22=\"\",D22=Admin!$D$16, D22=Admin!$D$12),0,IF('Term time booking form'!$J$7,'Terms & Conditions'!$G$5,'Terms & Conditions'!$F$5))","v":0},{"$f":"IF(OR(E22=\"\",E22=Admin!$D$16, E22=Admin!$D$12),0,IF('Term time booking form'!$J$7,'Terms & Conditions'!$G$5,'Terms & Conditions'!$F$5))","v":0},{"$f":"IF(OR(F22=\"\",F22=Admin!$D$16, F22=Admin!$D$12),0,IF('Term time booking form'!$J$7,'Terms & Conditions'!$G$5,'Terms & Conditions'!$F$5))","v":0},{"$f":"IF(OR(G22=\"\",G22=Admin!$D$16, G22=Admin!$D$12),0,IF('Term time booking form'!$J$7,'Terms & Conditions'!$G$5,'Terms & Conditions'!$F$5))","v":0},{"$f":"IF(OR(H22=\"\",H22=Admin!$D$16, H22=Admin!$D$12),0,IF('Term time booking form'!$J$7,'Terms & Conditions'!$G$5,'Terms & Conditions'!$F$5))","v":0}]
[null,null,"15:20 - 18:00",null,null,null,null,null,{"$f":"SUM(J23:N23)","v":0},{"$f":"IF(OR(D23=\"\",D23=Admin!$D$16, D23=Admin!$D$12),0,IF('Term time booking form'!$J$7,'Terms & Conditions'!$G$6,'Terms & Conditions'!$F$6))","v":0},{"$f":"IF(OR(E23=\"\",E23=Admin!$D$16, E23=Admin!$D$12),0,IF('Term time booking form'!$J$7,'Terms & Conditions'!$G$6,'Terms & Conditions'!$F$6))","v":0},{"$f":"IF(OR(F23=\"\",F23=Admin!$D$16, F23=Admin!$D$12),0,IF('Term time booking form'!$J$7,'Terms & Conditions'!$G$6,'Terms & Conditions'!$F$6))","v":0},{"$f":"IF(OR(G23=\"\",G23=Admin!$D$16, G23=Admin!$D$12),0,IF('Term time booking form'!$J$7,'Terms & Conditions'!$G$6,'Terms & Conditions'!$F$6))","v":0},{"$f":"IF(OR(H23=\"\",H23=Admin!$D$16, H23=Admin!$D$12),0,IF('Term time booking form'!$J$7,'Terms & Conditions'!$G$6,'Terms & Conditions'!$F$6))","v":0}]
[]
[null,"17/09/2018 - 21/09/2018","07:30 - 08:45",null,null,null,null,null,{"$f":"SUM(J25:N25)","v":0},{"$f":"IF(OR(D25=\"\",D25=Admin!$D$16, D25=Admin!$D$12),0,IF('Term time booking form'!$J$7,'Terms & Conditions'!$G$4,'Terms & Conditions'!$F$4))","v":0},{"$f":"IF(OR(E25=\"\",E25=Admin!$D$16, E25=Admin!$D$12),0,IF('Term time booking form'!$J$7,'Terms & Conditions'!$G$4,'Terms & Conditions'!$F$4))","v":0},{"$f":"IF(OR(F25=\"\",F25=Admin!$D$16, F25=Admin!$D$12),0,IF('Term time booking form'!$J$7,'Terms & Conditions'!$G$4,'Terms & Conditions'!$F$4))","v":0},{"$f":"IF(OR(G25=\"\",G25=Admin!$D$16, G25=Admin!$D$12),0,IF('Term time booking form'!$J$7,'Terms & Conditions'!$G$4,'Terms & Conditions'!$F$4))","v":0},{"$f":"IF(OR(H25=\"\",H25=Admin!$D$16, H25=Admin!$D$12),0,IF('Term time booking form'!$J$7,'Terms & Conditions'!$G$4,'Terms & Conditions'!$F$4))","v":0}]
[null,null,"15:20 - 17:00 ",null,null,null,null,null,{"$f":"SUM(J26:N26)","v":0},{"$f":"IF(OR(D26=\"\",D26=Admin!$D$16, D26=Admin!$D$12),0,IF('Term time booking form'!$J$7,'Terms & Conditions'!$G$5,'Terms & Conditions'!$F$5))","v":0},{"$f":"IF(OR(E26=\"\",E26=Admin!$D$16, E26=Admin!$D$12),0,IF('Term time booking form'!$J$7,'Terms & Conditions'!$G$5,'Terms & Conditions'!$F$5))","v":0},{"$f":"IF(OR(F26=\"\",F26=Admin!$D$16, F26=Admin!$D$12),0,IF('Term time booking form'!$J$7,'Terms & Conditions'!$G$5,'Terms & Conditions'!$F$5))","v":0},{"$f":"IF(OR(G26=\"\",G26=Admin!$D$16, G26=Admin!$D$12),0,IF('Term time booking form'!$J$7,'Terms & Conditions'!$G$5,'Terms & Conditions'!$F$5))","v":0},{"$f":"IF(OR(H26=\"\",H26=Admin!$D$16, H26=Admin!$D$12),0,IF('Term time booking form'!$J$7,'Terms & Conditions'!$G$5,'Terms & Conditions'!$F$5))","v":0}]
[null,null,"15:20 - 18:00",null,null,null,null,null,{"$f":"SUM(J27:N27)","v":0},{"$f":"IF(OR(D27=\"\",D27=Admin!$D$16, D27=Admin!$D$12),0,IF('Term time booking form'!$J$7,'Terms & Conditions'!$G$6,'Terms & Conditions'!$F$6))","v":0},{"$f":"IF(OR(E27=\"\",E27=Admin!$D$16, E27=Admin!$D$12),0,IF('Term time booking form'!$J$7,'Terms & Conditions'!$G$6,'Terms & Conditions'!$F$6))","v":0},{"$f":"IF(OR(F27=\"\",F27=Admin!$D$16, F27=Admin!$D$12),0,IF('Term time booking form'!$J$7,'Terms & Conditions'!$G$6,'Terms & Conditions'!$F$6))","v":0},{"$f":"IF(OR(G27=\"\",G27=Admin!$D$16, G27=Admin!$D$12),0,IF('Term time booking form'!$J$7,'Terms & Conditions'!$G$6,'Terms & Conditions'!$F$6))","v":0},{"$f":"IF(OR(H27=\"\",H27=Admin!$D$16, H27=Admin!$D$12),0,IF('Term time booking form'!$J$7,'Terms & Conditions'!$G$6,'Terms & Conditions'!$F$6))","v":0}]
[]
[null,"24/09/2018 - 28/09/2018","07:30 - 08:45",null,null,null,null,null,{"$f":"SUM(J29:N29)","v":0},{"$f":"IF(OR(D29=\"\",D29=Admin!$D$16, D29=Admin!$D$12),0,IF('Term time booking form'!$J$7,'Terms & Conditions'!$G$4,'Terms & Conditions'!$F$4))","v":0},{"$f":"IF(OR(E29=\"\",E29=Admin!$D$16, E29=Admin!$D$12),0,IF('Term time booking form'!$J$7,'Terms & Conditions'!$G$4,'Terms & Conditions'!$F$4))","v":0},{"$f":"IF(OR(F29=\"\",F29=Admin!$D$16, F29=Admin!$D$12),0,IF('Term time booking form'!$J$7,'Terms & Conditions'!$G$4,'Terms & Conditions'!$F$4))","v":0},{"$f":"IF(OR(G29=\"\",G29=Admin!$D$16, G29=Admin!$D$12),0,IF('Term time booking form'!$J$7,'Terms & Conditions'!$G$4,'Terms & Conditions'!$F$4))","v":0},{"$f":"IF(OR(H29=\"\",H29=Admin!$D$16, H29=Admin!$D$12),0,IF('Term time booking form'!$J$7,'Terms & Conditions'!$G$4,'Terms & Conditions'!$F$4))","v":0}]
[null,null,"15:20 - 17:00 ",null,null,null,null,null,{"$f":"SUM(J30:N30)","v":0},{"$f":"IF(OR(D30=\"\",D30=Admin!$D$16, D30=Admin!$D$12),0,IF('Term time booking form'!$J$7,'Terms & Conditions'!$G$5,'Terms & Conditions'!$F$5))","v":0},{"$f":"IF(OR(E30=\"\",E30=Admin!$D$16, E30=Admin!$D$12),0,IF('Term time booking form'!$J$7,'Terms & Conditions'!$G$5,'Terms & Conditions'!$F$5))","v":0},{"$f":"IF(OR(F30=\"\",F30=Admin!$D$16, F30=Admin!$D$12),0,IF('Term time booking form'!$J$7,'Terms & Conditions'!$G$5,'Terms & Conditions'!$F$5))","v":0},{"$f":"IF(OR(G30=\"\",G30=Admin!$D$16, G30=Admin!$D$12),0,IF('Term time booking form'!$J$7,'Terms & Conditions'!$G$5,'Terms & Conditions'!$F$5))","v":0},{"$f":"IF(OR(H30=\"\",H30=Admin!$D$16, H30=Admin!$D$12),0,IF('Term time booking form'!$J$7,'Terms & Conditions'!$G$5,'Terms & Conditions'!$F$5))","v":0}]
[null,null,"15:20 - 18:00",null,null,null,null,null,{"$f":"SUM(J31:N31)","v":0},{"$f":"IF(OR(D31=\"\",D31=Admin!$D$16, D31=Admin!$D$12),0,IF('Term time booking form'!$J$7,'Terms & Conditions'!$G$6,'Terms & Conditions'!$F$6))","v":0},{"$f":"IF(OR(E31=\"\",E31=Admin!$D$16, E31=Admin!$D$12),0,IF('Term time booking form'!$J$7,'Terms & Conditions'!$G$6,'Terms & Conditions'!$F$6))","v":0},{"$f":"IF(OR(F31=\"\",F31=Admin!$D$16, F31=Admin!$D$12),0,IF('Term time booking form'!$J$7,'Terms & Conditions'!$G$6,'Terms & Conditions'!$F$6))","v":0},{"$f":"IF(OR(G31=\"\",G31=Admin!$D$16, G31=Admin!$D$12),0,IF('Term time booking form'!$J$7,'Terms & Conditions'!$G$6,'Terms & Conditions'!$F$6))","v":0},{"$f":"IF(OR(H31=\"\",H31=Admin!$D$16, H31=Admin!$D$12),0,IF('Term time booking form'!$J$7,'Terms & Conditions'!$G$6,'Terms & Conditions'!$F$6))","v":0}]
[]
[null,"01/10/2018 - 05/10/2018","07:30 - 08:45",null,null,null,null,null,{"$f":"SUM(J33:N33)","v":0},{"$f":"IF(OR(D33=\"\",D33=Admin!$D$16, D33=Admin!$D$12),0,IF('Term time booking form'!$J$7,'Terms & Conditions'!$G$4,'Terms & Conditions'!$F$4))","v":0},{"$f":"IF(OR(E33=\"\",E33=Admin!$D$16, E33=Admin!$D$12),0,IF('Term time booking form'!$J$7,'Terms & Conditions'!$G$4,'Terms & Conditions'!$F$4))","v":0},{"$f":"IF(OR(F33=\"\",F33=Admin!$D$16, F33=Admin!$D$12),0,IF('Term time booking form'!$J$7,'Terms & Conditions'!$G$4,'Terms & Conditions'!$F$4))","v":0},{"$f":"IF(OR(G33=\"\",G33=Admin!$D$16, G33=Admin!$D$12),0,IF('Term time booking form'!$J$7,'Terms & Conditions'!$G$4,'Terms & Conditions'!$F$4))","v":0},{"$f":"IF(OR(H33=\"\",H33=Admin!$D$16, H33=Admin!$D$12),0,IF('Term time booking form'!$J$7,'Terms & Conditions'!$G$4,'Terms & Conditions'!$F$4))","v":0}]
[null,null,"15:20 - 17:00 ",null,null,null,null,null,{"$f":"SUM(J34:N34)","v":0},{"$f":"IF(OR(D34=\"\",D34=Admin!$D$16, D34=Admin!$D$12),0,IF('Term time booking form'!$J$7,'Terms & Conditions'!$G$5,'Terms & Conditions'!$F$5))","v":0},{"$f":"IF(OR(E34=\"\",E34=Admin!$D$16, E34=Admin!$D$12),0,IF('Term time booking form'!$J$7,'Terms & Conditions'!$G$5,'Terms & Conditions'!$F$5))","v":0},{"$f":"IF(OR(F34=\"\",F34=Admin!$D$16, F34=Admin!$D$12),0,IF('Term time booking form'!$J$7,'Terms & Conditions'!$G$5,'Terms & Conditions'!$F$5))","v":0},{"$f":"IF(OR(G34=\"\",G34=Admin!$D$16, G34=Admin!$D$12),0,IF('Term time booking form'!$J$7,'Terms & Conditions'!$G$5,'Terms & Conditions'!$F$5))","v":0},{"$f":"IF(OR(H34=\"\",H34=Admin!$D$16, H34=Admin!$D$12),0,IF('Term time booking form'!$J$7,'Terms & Conditions'!$G$5,'Terms & Conditions'!$F$5))","v":0}]
[null,null,"15:20 - 18:00",null,null,null,null,null,{"$f":"SUM(J35:N35)","v":0},{"$f":"IF(OR(D35=\"\",D35=Admin!$D$16, D35=Admin!$D$12),0,IF('Term time booking form'!$J$7,'Terms & Conditions'!$G$6,'Terms & Conditions'!$F$6))","v":0},{"$f":"IF(OR(E35=\"\",E35=Admin!$D$16, E35=Admin!$D$12),0,IF('Term time booking form'!$J$7,'Terms & Conditions'!$G$6,'Terms & Conditions'!$F$6))","v":0},{"$f":"IF(OR(F35=\"\",F35=Admin!$D$16, F35=Admin!$D$12),0,IF('Term time booking form'!$J$7,'Terms & Conditions'!$G$6,'Terms & Conditions'!$F$6))","v":0},{"$f":"IF(OR(G35=\"\",G35=Admin!$D$16, G35=Admin!$D$12),0,IF('Term time booking form'!$J$7,'Terms & Conditions'!$G$6,'Terms & Conditions'!$F$6))","v":0},{"$f":"IF(OR(H35=\"\",H35=Admin!$D$16, H35=Admin!$D$12),0,IF('Term time booking form'!$J$7,'Terms & Conditions'!$G$6,'Terms & Conditions'!$F$6))","v":0}]
[]
[null,"08/10/2018 - 12/10/2018","07:30 - 08:45",null,null,null,null,null,{"$f":"SUM(J37:N37)","v":0},{"$f":"IF(OR(D37=\"\",D37=Admin!$D$16, D37=Admin!$D$12),0,IF('Term time booking form'!$J$7,'Terms & Conditions'!$G$4,'Terms & Conditions'!$F$4))","v":0},{"$f":"IF(OR(E37=\"\",E37=Admin!$D$16, E37=Admin!$D$12),0,IF('Term time booking form'!$J$7,'Terms & Conditions'!$G$4,'Terms & Conditions'!$F$4))","v":0},{"$f":"IF(OR(F37=\"\",F37=Admin!$D$16, F37=Admin!$D$12),0,IF('Term time booking form'!$J$7,'Terms & Conditions'!$G$4,'Terms & Conditions'!$F$4))","v":0},{"$f":"IF(OR(G37=\"\",G37=Admin!$D$16, G37=Admin!$D$12),0,IF('Term time booking form'!$J$7,'Terms & Conditions'!$G$4,'Terms & Conditions'!$F$4))","v":0},{"$f":"IF(OR(H37=\"\",H37=Admin!$D$16, H37=Admin!$D$12),0,IF('Term time booking form'!$J$7,'Terms & Conditions'!$G$4,'Terms & Conditions'!$F$4))","v":0}]
[null,null,"15:20 - 17:00 ",null,null,null,null,null,{"$f":"SUM(J38:N38)","v":0},{"$f":"IF(OR(D38=\"\",D38=Admin!$D$16, D38=Admin!$D$12),0,IF('Term time booking form'!$J$7,'Terms & Conditions'!$G$5,'Terms & Conditions'!$F$5))","v":0},{"$f":"IF(OR(E38=\"\",E38=Admin!$D$16, E38=Admin!$D$12),0,IF('Term time booking form'!$J$7,'Terms & Conditions'!$G$5,'Terms & Conditions'!$F$5))","v":0},{"$f":"IF(OR(F38=\"\",F38=Admin!$D$16, F38=Admin!$D$12),0,IF('Term time booking form'!$J$7,'Terms & Conditions'!$G$5,'Terms & Conditions'!$F$5))","v":0},{"$f":"IF(OR(G38=\"\",G38=Admin!$D$16, G38=Admin!$D$12),0,IF('Term time booking form'!$J$7,'Terms & Conditions'!$G$5,'Terms & Conditions'!$F$5))","v":0},{"$f":"IF(OR(H38=\"\",H38=Admin!$D$16, H38=Admin!$D$12),0,IF('Term time booking form'!$J$7,'Terms & Conditions'!$G$5,'Terms & Conditions'!$F$5))","v":0}]
[null,null,"15:20 - 18:00",null,null,null,null,null,{"$f":"SUM(J39:N39)","v":0},{"$f":"IF(OR(D39=\"\",D39=Admin!$D$16, D39=Admin!$D$12),0,IF('Term time booking form'!$J$7,'Terms & Conditions'!$G$6,'Terms & Conditions'!$F$6))","v":0},{"$f":"IF(OR(E39=\"\",E39=Admin!$D$16, E39=Admin!$D$12),0,IF('Term time booking form'!$J$7,'Terms & Conditions'!$G$6,'Terms & Conditions'!$F$6))","v":0},{"$f":"IF(OR(F39=\"\",F39=Admin!$D$16, F39=Admin!$D$12),0,IF('Term time booking form'!$J$7,'Terms & Conditions'!$G$6,'Terms & Conditions'!$F$6))","v":0},{"$f":"IF(OR(G39=\"\",G39=Admin!$D$16, G39=Admin!$D$12),0,IF('Term time booking form'!$J$7,'Terms & Conditions'!$G$6,'Terms & Conditions'!$F$6))","v":0},{"$f":"IF(OR(H39=\"\",H39=Admin!$D$16, H39=Admin!$D$12),0,IF('Term time booking form'!$J$7,'Terms & Conditions'!$G$6,'Terms & Conditions'!$F$6))","v":0}]
[]
[null,"15/10/2018 - 19/10/2018","07:30 - 08:45",null,null,null,null,null,{"$f":"SUM(J41:N41)","v":0},{"$f":"IF(OR(D41=\"\",D41=Admin!$D$16, D41=Admin!$D$12),0,IF('Term time booking form'!$J$7,'Terms & Conditions'!$G$4,'Terms & Conditions'!$F$4))","v":0},{"$f":"IF(OR(E41=\"\",E41=Admin!$D$16, E41=Admin!$D$12),0,IF('Term time booking form'!$J$7,'Terms & Conditions'!$G$4,'Terms & Conditions'!$F$4))","v":0},{"$f":"IF(OR(F41=\"\",F41=Admin!$D$16, F41=Admin!$D$12),0,IF('Term time booking form'!$J$7,'Terms & Conditions'!$G$4,'Terms & Conditions'!$F$4))","v":0},{"$f":"IF(OR(G41=\"\",G41=Admin!$D$16, G41=Admin!$D$12),0,IF('Term time booking form'!$J$7,'Terms & Conditions'!$G$4,'Terms & Conditions'!$F$4))","v":0},{"$f":"IF(OR(H41=\"\",H41=Admin!$D$16, H41=Admin!$D$12),0,IF('Term time booking form'!$J$7,'Terms & Conditions'!$G$4,'Terms & Conditions'!$F$4))","v":0}]
[null,null,"15:20 - 17:00 ",null,null,null,null,null,{"$f":"SUM(J42:N42)","v":0},{"$f":"IF(OR(D42=\"\",D42=Admin!$D$16, D42=Admin!$D$12),0,IF('Term time booking form'!$J$7,'Terms & Conditions'!$G$5,'Terms & Conditions'!$F$5))","v":0},{"$f":"IF(OR(E42=\"\",E42=Admin!$D$16, E42=Admin!$D$12),0,IF('Term time booking form'!$J$7,'Terms & Conditions'!$G$5,'Terms & Conditions'!$F$5))","v":0},{"$f":"IF(OR(F42=\"\",F42=Admin!$D$16, F42=Admin!$D$12),0,IF('Term time booking form'!$J$7,'Terms & Conditions'!$G$5,'Terms & Conditions'!$F$5))","v":0},{"$f":"IF(OR(G42=\"\",G42=Admin!$D$16, G42=Admin!$D$12),0,IF('Term time booking form'!$J$7,'Terms & Conditions'!$G$5,'Terms & Conditions'!$F$5))","v":0},{"$f":"IF(OR(H42=\"\",H42=Admin!$D$16, H42=Admin!$D$12),0,IF('Term time booking form'!$J$7,'Terms & Conditions'!$G$5,'Terms & Conditions'!$F$5))","v":0}]
[null,null,"15:20 - 18:00",null,null,null,null,null,{"$f":"SUM(J43:N43)","v":0},{"$f":"IF(OR(D43=\"\",D43=Admin!$D$16, D43=Admin!$D$12),0,IF('Term time booking form'!$J$7,'Terms & Conditions'!$G$6,'Terms & Conditions'!$F$6))","v":0},{"$f":"IF(OR(E43=\"\",E43=Admin!$D$16, E43=Admin!$D$12),0,IF('Term time booking form'!$J$7,'Terms & Conditions'!$G$6,'Terms & Conditions'!$F$6))","v":0},{"$f":"IF(OR(F43=\"\",F43=Admin!$D$16, F43=Admin!$D$12),0,IF('Term time booking form'!$J$7,'Terms & Conditions'!$G$6,'Terms & Conditions'!$F$6))","v":0},{"$f":"IF(OR(G43=\"\",G43=Admin!$D$16, G43=Admin!$D$12),0,IF('Term time booking form'!$J$7,'Terms & Conditions'!$G$6,'Terms & Conditions'!$F$6))","v":0},{"$f":"IF(OR(H43=\"\",H43=Admin!$D$16, H43=Admin!$D$12),0,IF('Term time booking form'!$J$7,'Terms & Conditions'!$G$6,'Terms & Conditions'!$F$6))","v":0}]
[]
[]
[null,null,"This form has had early bird discount applied.  Please ensure this form is received by WOSC before the deadline above.",null,null,null,null,"Half term total fees",{"$f":"SUM(I16:I45)","v":0},"Total"]
[]
[null,"Note that payment must be received by Early bird payment date otherwise full rate will be charged",null,null,"Payment method*",null,"Amount to be paid by cheque:"]
[null,null,null,null,null,null,"Amount to be paid by BACS:"]
[null,null,null,null,null,null,"Amount to be paid by credit:"]
[null,"Voucher scheme name",null,null,null,null,"Amount to be paid by Voucher"]
[null,null,null,null,null,null,null,"Total payment",{"$f":"SUM(I48:I51)","v":0},{"$f":"I46-I52","v":0}]
[null,null,null,null,null,"Warning: Total payment does not equal total half term fees!"]
[null,"Admin only","EB","FR"]
[null,"Date form received"]

{"sheet":"Terms & Conditions","index":1,"n_rows":40,"n_cols":7,"rows_kept":40,"cut":false,"hidden":false,"merged":[]}
[null,"WOSC Terms & Conditions (Please also see admissions policy)",null,null,"WOSC RATES 2018/19"]
[]
[1,"Annual Registration (membership)",null,null,null,"Early bird","Full rate"]
[null,"i","The annual registration form must be completed before any child can be booked into the club. ",null,"Breakfast club",{"$f":"Admin!P4","v":4.95},{"$f":"Admin!Q4","v":5.61}]
[null,"ii","Any bookings received without a registration form will not be accepted.",null,"After school until 5pm",{"$f":"Admin!P5","v":7.14},{"$f":"Admin!Q5","v":8.4700000000000006}]
[null,"ii","Membership must be renewed annually for each child for the start of the September term.  ",null,"After school until 6pm",{"$f":"Admin!P6","v":10.199999999999999},{"$f":"Admin!Q6","v":12.04}]
[null,"iv","Membership fees are no longer separate charges but incorporated in the session fees."]
[]
[2,"WOSC Calendar"]
[null,"i","The WOSC Calendar can be found on the club's website and contains all of the early bird deadline dates, form release and payment dates for September term only, bank holidays, WW training days and holiday club days.  "]
[]
[3,"Early bird booking for the start of the academic year (September term) "]
[null,"i","Booking forms for the September term will be released in July as per the WOSC Calendar"]
[null,"ii","The Early bird (EB) deadline is 5 weeks prior to the start of term to allow confirmation of places to be made ahead of payment.  Confirmation of booking request will be made in such time to allow all payments to be made by the payment deadline in early August.   This allows staffing to be planned, parents to know whether their booking requests have been met, regular booking patterns to be established at the beginning of the year and to allow time for payment to be made and checked ahead of the start of term."]
[null,"iii","All booking forms received by the EB booking deadline for September will be collated when the deadline closes.  The following priorities will then be used in allocation of places providing registration forms have been also received:\n1. Children of staff and committee\n2. William Westley children already regularly attending the club (regular = at least one session/ week) \n3. Siblings of William Westley children already regularly attending the club\n4. First come first serve basis (time/date of email or time/date of form submitted to club postbox)  "]
[null,"iv","An email will be sent out within one week of the EB deadline passing to confirm whether session places have been allocated, subject to payment."]
[null,"v","Although availability will be confirmed ahead of payment, place allocation is still subject to payment being made by the payment deadline as shown on the WOSC calendar. If payment is not received in full and on time, then your reserved places will be lost. "]
[]
[4,"All other Early bird Half termly bookings and payment"]
[null,"i","For all other half term periods for the year the EB booking deadline will be four weeks ahead of the next half term.  Please submit your form by the date shown on the WOSC calendar."]
[null,"ii","Following receipt ofthe booking form, places will be allocated in the following priority order after the early bird deadline has expired:\n 1. Children of staff and committee\n 2. William Westley children with regular bookings established in the 2018/19 academic year (at least one session/week)\n 3.Siblings of William Westley children regularly attending the club but who are new to the club\n 4.4. First come first serve basis (time/date of email or time/date of form submitted to club post box). Provided forms are sent together at the same time, every effort will be made to ensure siblings who are both new to the club can be allocated places together."]
[null,"iii","Confirmation of your child's place will be sent via email within 48 hours of the EB  deadline passing but it is subject to payment. Payment must be received by the payment deadline given on the calendar to secure your child's place for the next half term using the early bird rate otherwise your child's place will be lost.  "]
[null,"v","New registrations & initiation of regular session bookings are welcome all year round but are subject to availability.  Siblings will be given priority as above."]
[null,"vi","Any bookings where payment is received after the early bird payment deadline will not be considered in the first allocation of places.  Places will be subject to availability and payment and will be charged at full rate.  See section 5."]
[]
[5,"Bookings made after early bird deadline, including late, adhoc and emergency bookings"]
[null,"i","For all bookings being made after the early bird deadline for the half term, the only method for booking is to call the club telephone 01223 495565 during club hours.  Email requests  will not be accepted. Confirmation of availability will need to be received from a member of staff."]
[null,"ii","Payment at full rate is required immediately. If payment is not received within 5 working days of the session request, then the club reserve the right not to accept your child for future bookings."]
[null,"iii","On confirmation of availability, the staff will make a record of the session(s) required and payment will be checked.  If payment is not received then the club reserve the right not to accept you child child for future bookings."]
[]
[6,"Payment methods"]
[null,"i","Payment is prefered by BACS, however cheques will be accepted. Please note cheques must be received (posted in club postbox) by the early bird deadline.\n\nCheques must be made payable to: Whittlesford Out of School Club CIO\n\nWOSC Bank account details for BACS:\nSort code: 09-01-29\nAccount number: 14319503\nPlease use child's full name as reference"]
[null,"ii","Payment or part payment can also be made using childcare vouchers.  Please use the dropdown list on the booking form to select your provider and ensure that the total payment made to the club covers the session fees in the booking form."]
[null,"iii","If payment or part payment is being made by childcare vouchers, please ensure that your WOSC account is in sufficient credit to cover fees by the early bird payment deadline or before your child starts sessions if paying full rate.   If insufficent payment is received by the early bird payment deadline, your place(s) cannot be guaranteed."]
[null,"iv","If any parent has any problems with making payment, they should contact the treasurer@wosclub.co.uk to discuss appropriate options."]
[null,"v","Note that the committee is comprised of volunteers, therefore the club reserves the right to utilise date of payment on bank statements, date cheques received in club and date vouchers paid in as reference.  Follow up for non-payment therefore may not be immediate due to the personal commitments of the committee."]
[]
[7,"Accumulated credit"]
[null,"i","Parents are responsible for managing their credit with the club if sessions are cancelled with greater than 7 working days notice. See Admissions policy for cancellation rules.  Note that vouchers are not refundable."]
[null,"ii","To support parents in reviewing credit, statements may be issued at the end of each half term. "]

{"sheet":"Admin","index":2,"n_rows":36,"n_cols":17,"rows_kept":36,"cut":false,"hidden":true,"merged":[]}
["WOSC admin only"]
[null,null,null,null,null,null,null,null,null,null,null,null,null,null,"Rates"]
[null,null,"Select year",null,null,null,2018,null,null,null,null,null,null,null,null,"Early bird","Full rate"]
[null,null,"State which half term period",null,null,null,"Sept - Oct",null,null,null,null,null,null,null,"Breakfast club",4.95,5.61]
[null,null,null,null,null,null,null,null,null,null,null,null,null,null,"After school until 5pm",7.14,8.4700000000000006]
[null,null,"Early Bird  Deadline date",null,null,null,"2018-07-20",null,null,null,null,null,null,null,"After school until 6pm",10.199999999999999,12.04]
[]
[null,null,"No. of weeks in half term period",null,null,null,7,null,null,null,null,null,null,null,"Date rates entered","2018-07-02"]
[null,null,"Date of Monday of first week",null,null,null,"2018-09-03"]
[]
[null,null,null,null,null,"wk no.","day","day #"]
[null,null,"Date of","Bank Holiday",1,null,null,{"$f":"VLOOKUP(G12,E$25:F$29,2,FALSE)","v":{"$error":"#N/A"}}]
[null,null,null,null,2,null,null,{"$f":"VLOOKUP(G13,E$25:F$29,2,FALSE)","v":{"$error":"#N/A"}},null,null,null,null,null,null,"Voucher lookup"]
[null,null,null,null,3,null,null,{"$f":"VLOOKUP(G14,E$25:F$29,2,FALSE)","v":{"$error":"#N/A"}},null,null,null,null,null,null,"Edenred"]
[null,null,null,null,null,null,null,null,null,null,null,null,null,null,"Kids Unlimited"]
[null,null,"Date of","Training day",1,1,"Monday",{"$f":"VLOOKUP(G16,E$25:F$29,2,FALSE)","v":1},null,null,null,null,null,null,"Computershare"]
[null,null,null,null,2,1,"Tuesday",{"$f":"VLOOKUP(G17,E$25:F$29,2,FALSE)","v":2},null,null,null,null,null,null,"Sodexo/SayCarePass"]
[null,null,null,null,null,null,null,null,null,null,null,null,null,null,"Kiddivouchers"]
[null,null,null,null,null,null,null,null,null,null,null,null,null,null,"AllSave"]
[null,null,null,null,null,null,null,null,null,null,null,null,null,null,"You at Work"]
[null,null,null,null,null,null,null,null,null,null,null,null,null,null,"Busy Bees Benefits: "]
[null,null,null,null,null,null,null,null,null,null,null,null,null,null,"Care4"]
[null,null,"LOOKUP",null,null,null,null,null,null,null,null,null,null,null,"Faircare"]
[null,null,"year","halfterm","BH Day","BH wk",null,null,null,null,null,null,null,null,"Government Tax Free Childcare scheme"]
[null,null,2017,"Sept - Oct","Monday",1]
[null,null,2018,"Nov - Dec","Tuesday",2]
[null,null,2019,"Jan- Feb","Wednesday",3]
[null,null,2020,"Feb-Mar","Thursday",4]
[null,null,null,"Feb  - Apr","Friday",5]
[null,null,null,"Apr - May",null,6]
[null,null,null,"June - July",null,7]
[null,null,null,null,null,8]
["Do not move the table below including the line below it from Row 34 Column 2"]
[null,null,"07:30 - 08:45",null,null,null,null,null,{"$f":"SUM(J34:N34)","v":0},{"$f":"IF(OR(D34=\"\",D34=Admin!$D$16, D34=Admin!$D$12),0,IF('Term time booking form'!$J$7,'Terms & Conditions'!$G$4,'Terms & Conditions'!$F$4))","v":0},{"$f":"IF(OR(E34=\"\",E34=Admin!$D$16, E34=Admin!$D$12),0,IF('Term time booking form'!$J$7,'Terms & Conditions'!$G$4,'Terms & Conditions'!$F$4))","v":0},{"$f":"IF(OR(F34=\"\",F34=Admin!$D$16, F34=Admin!$D$12),0,IF('Term time booking form'!$J$7,'Terms & Conditions'!$G$4,'Terms & Conditions'!$F$4))","v":0},{"$f":"IF(OR(G34=\"\",G34=Admin!$D$16, G34=Admin!$D$12),0,IF('Term time booking form'!$J$7,'Terms & Conditions'!$G$4,'Terms & Conditions'!$F$4))","v":0},{"$f":"IF(OR(H34=\"\",H34=Admin!$D$16, H34=Admin!$D$12),0,IF('Term time booking form'!$J$7,'Terms & Conditions'!$G$4,'Terms & Conditions'!$F$4))","v":0}]
[null,null,"15:20 - 17:00 ",null,null,null,null,null,{"$f":"SUM(J35:N35)","v":0},{"$f":"IF(OR(D35=\"\",D35=Admin!$D$16, D35=Admin!$D$12),0,IF('Term time booking form'!$J$7,'Terms & Conditions'!$G$5,'Terms & Conditions'!$F$5))","v":0},{"$f":"IF(OR(E35=\"\",E35=Admin!$D$16, E35=Admin!$D$12),0,IF('Term time booking form'!$J$7,'Terms & Conditions'!$G$5,'Terms & Conditions'!$F$5))","v":0},{"$f":"IF(OR(F35=\"\",F35=Admin!$D$16, F35=Admin!$D$12),0,IF('Term time booking form'!$J$7,'Terms & Conditions'!$G$5,'Terms & Conditions'!$F$5))","v":0},{"$f":"IF(OR(G35=\"\",G35=Admin!$D$16, G35=Admin!$D$12),0,IF('Term time booking form'!$J$7,'Terms & Conditions'!$G$5,'Terms & Conditions'!$F$5))","v":0},{"$f":"IF(OR(H35=\"\",H35=Admin!$D$16, H35=Admin!$D$12),0,IF('Term time booking form'!$J$7,'Terms & Conditions'!$G$5,'Terms & Conditions'!$F$5))","v":0}]
[null,null,"15:20 - 18:00",null,null,null,null,null,{"$f":"SUM(J36:N36)","v":0},{"$f":"IF(OR(D36=\"\",D36=Admin!$D$16, D36=Admin!$D$12),0,IF('Term time booking form'!$J$7,'Terms & Conditions'!$G$6,'Terms & Conditions'!$F$6))","v":0},{"$f":"IF(OR(E36=\"\",E36=Admin!$D$16, E36=Admin!$D$12),0,IF('Term time booking form'!$J$7,'Terms & Conditions'!$G$6,'Terms & Conditions'!$F$6))","v":0},{"$f":"IF(OR(F36=\"\",F36=Admin!$D$16, F36=Admin!$D$12),0,IF('Term time booking form'!$J$7,'Terms & Conditions'!$G$6,'Terms & Conditions'!$F$6))","v":0},{"$f":"IF(OR(G36=\"\",G36=Admin!$D$16, G36=Admin!$D$12),0,IF('Term time booking form'!$J$7,'Terms & Conditions'!$G$6,'Terms & Conditions'!$F$6))","v":0},{"$f":"IF(OR(H36=\"\",H36=Admin!$D$16, H36=Admin!$D$12),0,IF('Term time booking form'!$J$7,'Terms & Conditions'!$G$6,'Terms & Conditions'!$F$6))","v":0}]